fUSD/lending_fUSD_20240424
["ID","MTS","AMOUNT","RATE_DAILY","PERIOD"]
[323441069,1713991841697,-500.0,0.00011506,2]
[323441070,1713991841707,-500.0,0.00011506,2]
[323441071,1713991841716,-665.53,0.00011506,2]
[323441072,1713991841726,-500.0,0.00011506,2]
[323441073,1713991841737,-500.0,0.00011506,2]
[323441074,1713991841748,-500.0,0.00011506,2]
[323441075,1713991841758,-500.0,0.00011506,2]
[323441076,1713991841767,-500.0,0.00011506,2]
[323441077,1713991841776,-736.69,0.00011506,2]
[323441078,1713991841785,-826.15,0.00011506,2]
[323441079,1713991841795,-500.0,0.00011506,2]
[323441080,1713991841804,-500.0,0.00011506,2]
[323441081,1713991841813,-500.0,0.00011506,2]
[323441082,1713991841823,-807.78,0.00011506,2]
[323441083,1713991841833,-2038.9,0.00011506,2]
[323441084,1713991841843,-705.7,0.00011506,2]
[323441085,1713991841853,-1307.93,0.00011506,2]
[323441086,1713991841862,-546.95,0.00011506,2]
[323441087,1713991841871,-1642.17,0.00011506,2]
[323441088,1713991841882,-3738.06,0.00011506,2]
[323441089,1713991841892,-805.45,0.00011506,2]
[323441090,1713991841904,-500.0,0.00011506,2]
[323441091,1713991841913,-500.0,0.00011506,2]
[323441092,1713991841924,-500.0,0.00011506,2]
[323441093,1713991841933,-1911.86,0.00011506,2]
[323441094,1713991841942,-500.0,0.00011506,2]
[323441095,1713991841952,-1296.39,0.00011506,2]
[323441096,1713991841962,-690.75,0.00011506,2]
[323441097,1713991841971,-500.0,0.00011506,2]
[323441098,1713991841981,-500.0,0.00011506,2]
[323441099,1713991841991,-857.69,0.00011506,2]
[323441100,1713991842001,-2921.56,0.00011506,2]
[323441101,1713991842010,-1941.91,0.00011506,2]
[323441102,1713991842022,-500.0,0.00011506,2]
[323441103,1713991842031,-936.37,0.00011506,2]
[323441104,1713991842041,-1967.54,0.00011506,2]
[323441105,1713991842051,-500.0,0.00011506,2]
[323441106,1713991842060,-3113.04,0.00011506,2]
[323441107,1713991842070,-621.85,0.00011506,2]
[323441108,1713991842079,-611.57,0.00011506,2]
[323441109,1713991842089,-2015.75,0.00011506,2]
[323441110,1713991842098,-500.0,0.00011506,2]
[323441111,1713991842108,-500.0,0.00011506,2]
[323441112,1713991842117,-1275.63,0.00011506,2]
[323441113,1713991842127,-696.19,0.00011506,2]
[323441114,1713991842137,-1820.17,0.00011506,2]
[323441115,1713991842147,-947.66,0.00011506,2]
[323441116,1713991842157,-1464.99,0.00011506,2]
[323441117,1713991842166,-2801.3,0.00011506,2]
[323441118,1713991842176,-41852.14,0.00011506,2]
[323441119,1713991842186,-500.0,0.00011506,2]
[323441120,1713991842197,-500.0,0.00011506,2]
[323441121,1713991842206,-1433.62,0.00011506,2]
[323441122,1713991842215,-1096.33,0.00011506,2]
[323441123,1713991842225,-1204.62,0.00011506,2]
[323441124,1713991842235,-1145.17,0.00011506,2]
[323441125,1713991842245,-670.73,0.00011506,2]
[323441126,1713991842257,-818.13,0.00011506,2]
[323441127,1713991842267,-802.18,0.00011506,2]
[323441128,1713991842277,-500.0,0.00011506,2]
[323441129,1713991842288,-27802.61,0.00011506,2]
[323441130,1713991842303,-926.5,0.00011506,2]
[323441131,1713991842313,-956.63,0.00011506,2]
[323441132,1713991842322,-500.0,0.00011506,2]
[323441133,1713991842331,-1022.62,0.00011506,2]
[323441134,1713991842342,-1268.18,0.00011506,2]
[323441135,1713991842351,-807.35,0.00011506,2]
[323441136,1713991842360,-552.13,0.00011506,2]
[323441137,1713991842371,-1304.69,0.00011506,2]
[323441138,1713991842381,-745.21,0.00011506,2]
[323441139,1713991842390,-1518.01,0.00011506,2]
[323441140,1713991842400,-1258.54,0.00011506,2]
[323441141,1713991842409,-500.0,0.00011506,2]
[323441142,1713991842420,-1273.21,0.00011506,2]
[323441143,1713991842429,-500.0,0.00011506,2]
[323441144,1713991842439,-855.16,0.00011506,2]
[323441145,1713991842448,-3556.77,0.00011506,2]
[323441146,1713991842458,-661.08,0.00011506,2]
[323441147,1713991842468,-1147.95,0.00011506,2]
[323441148,1713991842479,-616.17,0.00011506,2]
[323441149,1713991842489,-500.0,0.00011506,2]
[323441150,1713991842498,-711.37,0.00011506,2]
[323441151,1713991842507,-1278.88,0.00011506,2]
[323441152,1713991842516,-500.0,0.00011506,2]
[323441153,1713991842526,-630.07,0.00011506,2]
[323441154,1713991842535,-1352.75,0.00011506,2]
[323441155,1713991842545,-500.0,0.00011506,2]
[323441156,1713991842554,-1942.44,0.00011506,2]
[323441157,1713991842565,-1004.93,0.00011506,2]
[323441158,1713991842575,-500.0,0.00011506,2]
[323441159,1713991842584,-500.0,0.00011506,2]
[323441160,1713991842593,-607.85,0.00011506,2]
[323441161,1713991842604,-970.3,0.00011506,2]
[323441162,1713991842615,-2785.8,0.00011506,2]
[323441163,1713991842624,-500.0,0.00011506,2]
[323441164,1713991842633,-500.0,0.00011506,2]
[323441165,1713991842643,-2017.97,0.00011506,2]
[323441166,1713991842653,-1408.5,0.00011506,2]
[323441167,1713991842662,-500.0,0.00011506,2]
[323441168,1713991842672,-1253.8,0.00011506,2]
[323441169,1713991842681,-2871.24,0.00011506,2]
[323441170,1713991842690,-500.0,0.00011506,2]
[323441171,1713991842700,-500.0,0.00011506,2]
[323441172,1713991842709,-1364.69,0.00011506,2]
[323441173,1713991842718,-556.02,0.00011506,2]
[323441174,1713991842727,-567.30120888,0.00011506,2]
[323441175,1713991842737,-1040.15,0.00011506,2]
[323441176,1713991842746,-2840.23,0.00011506,2]
[323441177,1713991842755,-2059.51,0.00011506,2]
[323441178,1713991842765,-500.0,0.00011506,2]
[323441179,1713991842774,-500.0,0.00011506,2]
[323441180,1713991842783,-715.7,0.00011506,2]
[323441181,1713991842792,-500.0,0.00011506,2]
[323441182,1713991842802,-544.33,0.00011506,2]
[323441183,1713991842811,-1817.33,0.00011506,2]
[323441184,1713991842820,-1548.88,0.00011506,2]
[323441185,1713991842829,-987.87,0.00011506,2]
[323441186,1713991842838,-616.24,0.00011506,2]
[323441187,1713991842847,-500.0,0.00011506,2]
[323441188,1713991842856,-3875.02,0.00011506,2]
[323441189,1713991842866,-500.0,0.00011506,2]
[323441190,1713991842875,-1544.0,0.00011506,2]
[323441191,1713991842884,-500.0,0.00011506,2]
[323441192,1713991842894,-1231.43,0.00011506,2]
[323441193,1713991842904,-2789.34,0.00011506,2]
[323441194,1713991842913,-3734.67,0.00011506,2]
[323441195,1713991842921,-8238.28,0.00011506,2]
[323441197,1713991842930,-1407.11,0.00011506,2]
[323441199,1713991842939,-500.0,0.00011506,2]
[323441200,1713991842948,-500.0,0.00011506,2]
[323441203,1713991842958,-1307.71,0.00011506,2]
[323441205,1713991842967,-1027.0,0.00011506,2]
[323441206,1713991842977,-500.0,0.00011506,2]
[323441207,1713991842986,-835.89,0.00011506,2]
[323441208,1713991842996,-1276.67,0.00011506,2]
[323441209,1713991843005,-500.0,0.00011506,2]
[323441211,1713991843014,-500.0,0.00011506,2]
[323441213,1713991843023,-1932.45,0.00011506,2]
[323441215,1713991843032,-1468.72,0.00011506,2]
[323441217,1713991843041,-500.0,0.00011506,2]
[323441218,1713991843050,-713.89,0.00011506,2]
[323441220,1713991843060,-8052.86,0.00011506,2]
[323441223,1713991843069,-846.41,0.00011506,2]
[323441225,1713991843078,-500.0,0.00011506,2]
[323441227,1713991843088,-677.71,0.00011506,2]
[323441229,1713991843097,-541.0,0.0001153,2]
[323441231,1713991843107,-1200.741,0.0001153,2]
[323441233,1713991843116,-1104.289,0.0001153,2]
[323441235,1713991843126,-37702.0,0.0001153,2]
[323441237,1713991843135,-909.959,0.0001153,2]
[323441239,1713991843146,-590.364,0.0001153,2]
[323441241,1713991843157,-150.0,0.0001153,2]
[323441243,1713991843165,-10719.32113538,0.00011542,2]
[323441245,1713991843174,-155.18316179,0.00011657,2]
[323441248,1713991843184,-157.23873025,0.00011657,2]
[323441251,1713991843193,-195.24769107,0.00011657,2]
[323441253,1713991843202,-155.0,0.00011657,2]
[323441257,1713991843211,-155.0,0.00011658,2]
[323441261,1713991843220,-10719.32113538,0.00011678,2]
[323441264,1713991843229,-849.88790401,0.0001168,2]
[323441268,1713991843239,-13300.0,0.000117,4]
[323441271,1713991843248,-206.72764411,0.00011734,2]
[323441273,1713991843257,-194.84958766,0.00011736,2]
[323441276,1713991843267,-155.87491651,0.00011736,2]
[323441279,1713991843276,-255.3668917,0.00011736,2]
[323441282,1713991843285,-484.22605537,0.00011736,2]
[323441284,1713991843297,-218.42683294,0.00011736,2]
[323441286,1713991843307,-3382.14833468,0.00011736,2]
[323441287,1713991843316,-155.11003247,0.00011737,2]
[323441289,1713991843326,-168.74926631,0.00011737,2]
[323441291,1713991843336,-162.12456104,0.00011737,2]
[323441293,1713991843346,-1030.5412573,0.00011738,3]
[323441296,1713991843356,-205.78552149,0.00011759,2]
[323441298,1713991843365,-2612.05442847,0.00011759,2]
[323441300,1713991843377,-795.25569106,0.00011759,2]
[323441301,1713991843387,-1035.0,0.0001178,2]
[323441302,1713991843396,-500.0,0.0001178,2]
[323441303,1713991843407,-573.0,0.0001178,2]
[323441304,1713991843416,-500.0,0.0001178,2]
[323441305,1713991843426,-500.0,0.0001178,2]
[323441306,1713991843435,-500.0,0.0001178,2]
[323441307,1713991843445,-647.06,0.0001178,2]
[323441308,1713991843455,-500.0,0.0001178,2]
[323441309,1713991843465,-840.66,0.0001178,2]
[323441310,1713991843475,-500.0,0.0001178,2]
[323441311,1713991843485,-500.0,0.0001178,2]
[323441312,1713991843496,-805.34,0.0001178,2]
[323441313,1713991843506,-856.22,0.0001178,2]
[323441314,1713991843516,-500.0,0.0001178,2]
[323441315,1713991843527,-500.0,0.0001178,2]
[323441316,1713991843538,-500.0,0.0001178,2]
[323441317,1713991843547,-500.0,0.0001178,2]
[323441318,1713991843557,-500.0,0.0001178,2]
[323441319,1713991843568,-615.27,0.0001178,2]
[323441320,1713991843578,-574.89,0.0001178,2]
[323441321,1713991843587,-500.0,0.0001178,2]
[323441322,1713991843597,-591.14,0.0001178,2]
[323441323,1713991843606,-500.0,0.0001178,2]
[323441324,1713991843616,-500.0,0.0001178,2]
[323441325,1713991843626,-150.0,0.0001178,2]
[323441326,1713991843635,-859.61,0.0001178,2]
[323441327,1713991843645,-506.23,0.0001178,2]
[323441328,1713991843655,-500.0,0.0001178,2]
[323441329,1713991843665,-842.34,0.0001178,2]
[323441330,1713991843674,-548.43,0.0001178,2]
[323441331,1713991843684,-500.0,0.0001178,2]
[323441332,1713991843694,-500.0,0.0001178,2]
[323441333,1713991843703,-500.0,0.0001178,2]
[323441334,1713991843713,-500.0,0.0001178,2]
[323441335,1713991843723,-500.0,0.0001178,2]
[323441336,1713991843733,-665.53,0.0001178,2]
[323441337,1713991843742,-197.90761737,0.0001178,2]
[323441338,1713991843752,-500.0,0.0001178,2]
[323441340,1713991843762,-500.0,0.0001178,2]
[323441341,1713991843772,-500.0,0.0001178,2]
[323441342,1713991843782,-500.0,0.0001178,2]
[323441343,1713991843791,-736.69,0.0001178,2]
[323441344,1713991843801,-826.15,0.0001178,2]
[323441345,1713991843993,-500.0,0.0001178,2]
[323441346,1713991844029,-500.0,0.0001178,2]
[323441347,1713991844039,-500.0,0.0001178,2]
[323441348,1713991844048,-807.78,0.0001178,2]
[323441349,1713991844058,-2038.9,0.0001178,2]
[323441350,1713991844068,-705.7,0.0001178,2]
[323441351,1713991844078,-1307.93,0.0001178,2]
[323441352,1713991844088,-546.95,0.0001178,2]
[323441353,1713991844099,-1642.17,0.0001178,2]
[323441354,1713991844109,-3738.06,0.0001178,2]
[323441355,1713991844119,-805.45,0.0001178,2]
[323441356,1713991844130,-500.0,0.0001178,2]
[323441357,1713991844139,-500.0,0.0001178,2]
[323441358,1713991844149,-500.0,0.0001178,2]
[323441359,1713991844158,-1911.86,0.0001178,2]
[323441360,1713991844168,-500.0,0.0001178,2]
[323441361,1713991844177,-1296.39,0.0001178,2]
[323441362,1713991844187,-690.75,0.0001178,2]
[323441363,1713991844197,-500.0,0.0001178,2]
[323441364,1713991844206,-500.0,0.0001178,2]
[323441365,1713991844216,-857.69,0.0001178,2]
[323441366,1713991844226,-2921.56,0.0001178,2]
[323441367,1713991844236,-1941.91,0.0001178,2]
[323441368,1713991844245,-936.37,0.0001178,2]
[323441369,1713991844254,-500.0,0.0001178,2]
[323441370,1713991844264,-1967.54,0.0001178,2]
[323441371,1713991844273,-500.0,0.0001178,2]
[323441372,1713991844283,-3113.04,0.0001178,2]
[323441373,1713991844292,-621.85,0.0001178,2]
[323441374,1713991844304,-611.57,0.0001178,2]
[323441375,1713991844313,-2015.75,0.0001178,2]
[323441376,1713991844323,-500.0,0.0001178,2]
[323441377,1713991844332,-595.33167179,0.0001178,2]
[323441378,1713991844343,-1275.63,0.0001178,2]
[323441379,1713991844353,-696.19,0.0001178,2]
[323441380,1713991844363,-1820.17,0.0001178,2]
[323441381,1713991844375,-947.66,0.0001178,2]
[323441382,1713991844384,-1464.99,0.0001178,2]
[323441383,1713991844393,-2801.3,0.0001178,2]
[323441384,1713991844404,-41852.14,0.0001178,2]
[323441385,1713991844414,-500.0,0.0001178,2]
[323441386,1713991844423,-500.0,0.0001178,2]
[323441387,1713991844433,-1433.62,0.0001178,2]
[323441388,1713991844442,-1096.33,0.0001178,2]
[323441389,1713991844452,-1204.62,0.0001178,2]
[323441390,1713991844461,-1145.17,0.0001178,2]
[323441391,1713991844470,-670.73,0.0001178,2]
[323441392,1713991844480,-818.13,0.0001178,2]
[323441393,1713991844489,-802.18,0.0001178,2]
[323441394,1713991844498,-500.0,0.0001178,2]
[323441395,1713991844507,-27802.61,0.0001178,2]
[323441396,1713991844517,-926.5,0.0001178,2]
[323441397,1713991844526,-956.63,0.0001178,2]
[323441398,1713991844536,-500.0,0.0001178,2]
[323441399,1713991844545,-1022.62,0.0001178,2]
[323441400,1713991844555,-1268.18,0.0001178,2]
[323441401,1713991844565,-807.35,0.0001178,2]
[323441402,1713991844574,-552.13,0.0001178,2]
[323441403,1713991844583,-1304.69,0.0001178,2]
[323441404,1713991844593,-745.21,0.0001178,2]
[323441405,1713991844602,-1518.01,0.0001178,2]
[323441406,1713991844611,-1258.54,0.0001178,2]
[323441407,1713991844621,-500.0,0.0001178,2]
[323441408,1713991844630,-1273.21,0.0001178,2]
[323441409,1713991844640,-500.0,0.0001178,2]
[323441410,1713991844650,-855.16,0.0001178,2]
[323441411,1713991844662,-3556.77,0.0001178,2]
[323441412,1713991844671,-661.08,0.0001178,2]
[323441413,1713991844681,-1147.95,0.0001178,2]
[323441414,1713991844690,-616.17,0.0001178,2]
[323441415,1713991844699,-500.0,0.0001178,2]
[323441416,1713991844709,-711.37,0.0001178,2]
[323441417,1713991844718,-1278.88,0.0001178,2]
[323441418,1713991844727,-500.0,0.0001178,2]
[323441419,1713991844736,-630.07,0.0001178,2]
[323441420,1713991844746,-1352.75,0.0001178,2]
[323441421,1713991844755,-500.0,0.0001178,2]
[323441422,1713991844764,-1942.44,0.0001178,2]
[323441423,1713991844773,-1004.93,0.0001178,2]
[323441424,1713991844782,-500.0,0.0001178,2]
[323441425,1713991844792,-500.0,0.0001178,2]
[323441426,1713991844801,-607.85,0.0001178,2]
[323441427,1713991844811,-970.3,0.0001178,2]
[323441428,1713991844819,-500.0,0.0001178,2]
[323441429,1713991844829,-500.0,0.0001178,2]
[323441430,1713991844838,-2785.8,0.0001178,2]
[323441431,1713991844848,-2017.97,0.0001178,2]
[323441432,1713991844857,-1408.5,0.0001178,2]
[323441433,1713991844866,-200.18495687,0.0001178,2]
[323441434,1713991844875,-1253.8,0.0001178,2]
[323441435,1713991844885,-2871.24,0.0001178,2]
[323441436,1713991844895,-500.0,0.0001178,2]
[323441437,1713991844905,-500.0,0.0001178,2]
[323441438,1713991844914,-1364.69,0.0001178,2]
[323441439,1713991844924,-556.02,0.0001178,2]
[323441440,1713991844933,-1040.15,0.0001178,2]
[323441441,1713991844942,-2840.23,0.0001178,2]
[323441442,1713991844951,-500.0,0.0001178,2]
[323441443,1713991844960,-2059.51,0.0001178,2]
[323441444,1713991844969,-500.0,0.0001178,2]
[323441445,1713991844978,-715.7,0.0001178,2]
[323441446,1713991844989,-500.0,0.0001178,2]
[323441447,1713991844998,-544.33,0.0001178,2]
[323441448,1713991845008,-1817.33,0.0001178,2]
[323441449,1713991845017,-1548.88,0.0001178,2]
[323441450,1713991845026,-987.87,0.0001178,2]
[323441451,1713991845036,-616.24,0.0001178,2]
[323441452,1713991845045,-500.0,0.0001178,2]
[323441453,1713991845055,-3875.02,0.0001178,2]
[323441454,1713991845065,-500.0,0.0001178,2]
[323441455,1713991845075,-1544.0,0.0001178,2]
[323441456,1713991845085,-500.0,0.0001178,2]
[323441457,1713991845094,-1231.43,0.0001178,2]
[323441458,1713991845103,-2789.34,0.0001178,2]
[323441459,1713991845113,-3734.67,0.0001178,2]
[323441460,1713991845122,-8238.28,0.0001178,2]
[323441461,1713991845131,-1407.11,0.0001178,2]
[323441462,1713991845141,-500.0,0.0001178,2]
[323441463,1713991845152,-500.0,0.0001178,2]
[323441464,1713991845161,-1307.71,0.0001178,2]
[323441465,1713991845170,-1027.0,0.0001178,2]
[323441466,1713991845179,-343.42066658,0.0001178,2]
[323441467,1713991845189,-835.89,0.0001178,2]
[323441468,1713991845198,-1276.67,0.0001178,2]
[323441469,1713991845207,-500.0,0.0001178,2]
[323441470,1713991845217,-500.0,0.0001178,2]
[323441471,1713991845226,-1932.45,0.0001178,2]
[323441472,1713991845235,-1468.72,0.0001178,2]
[323441473,1713991845244,-500.0,0.0001178,2]
[323441474,1713991845253,-713.89,0.0001178,2]
[323441475,1713991845263,-846.41,0.0001178,2]
[323441476,1713991845272,-8052.86,0.0001178,2]
[323441477,1713991845282,-500.0,0.0001178,2]
[323441478,1713991845292,-677.71,0.0001178,2]
[323441479,1713991845305,-17700.0,0.000118,4]
[323441480,1713991845314,-117975.19541255,0.00011813,2]
[323441481,1713991845324,-10719.32113538,0.00011813,2]
[323441482,1713991845333,-907.13387672,0.00011849,2]
[323441483,1713991845344,-155.0,0.00011857,2]
[323441484,1713991845353,-238.2718178,0.00011857,2]
[323441485,1713991845364,-208.92477081,0.00011858,2]
[323441486,1713991845374,-630.81613366,0.00011858,2]
[323441487,1713991845385,-778.9104662,0.00011858,2]
[323441488,1713991845395,-155.31467747,0.00011858,2]
[323441489,1713991845406,-641614.34933283,0.00011859,2]
[323441490,1713991845415,-2258.755748,0.00011859,2]
[323441491,1713991845425,-2258.755748,0.00011859,2]
[323441492,1713991845435,-378.655689,0.00011859,2]
[323441493,1713991845445,-378.655689,0.00011859,2]
[323441494,1713991845454,-151.0,0.00011859,2]
[323441495,1713991845464,-337815.67370173,0.0001186,2]
[323441496,1713991845474,-555476.99753968,0.000119,2]
[323441497,1713991845484,-2258.755748,0.000119,2]
[323441498,1713991845493,-2258.755748,0.000119,2]
[323441499,1713991845503,-22100.0,0.000119,4]
[323441500,1713991845512,-378.655689,0.000119,2]
[323441501,1713991845522,-378.655689,0.000119,2]
[323441502,1713991845531,-207.65573,0.000119,2]
[323441503,1713991845541,-157.94864644,0.00011932,2]
[323441504,1713991845550,-10719.32113538,0.00011949,2]
[323441505,1713991845559,-173.44820364,0.0001195,2]
[323441506,1713991845569,-266.31372901,0.0001195,2]
[323441507,1713991845579,-1000.0,0.00011981,2]
[323441508,1713991845588,-4178.44,0.00011985,2]
[323441509,1713991845598,-10199.349033,0.00012,2]
[323441510,1713991845608,-409.12011988,0.00012,2]
[323441511,1713991845617,-918.0,0.00012,2]
[323441512,1713991845627,-1000.0,0.00012,2]
[323441513,1713991845637,-19514.87011693,0.00012,2]
[323441514,1713991845646,-2425.85700214,0.00012,2]
[323441515,1713991845656,-3069.43072971,0.00012,2]
[323441516,1713991845666,-3184.18321302,0.00012,2]
[323441517,1713991845675,-155.04223178,0.00012,2]
[323441518,1713991845685,-3302.60136505,0.00012,2]
[323441519,1713991845694,-8000.0,0.00012,2]
[323441520,1713991845703,-5000.0,0.00012,2]
[323441521,1713991845713,-8000.0,0.00012,2]
[323441522,1713991845722,-5000.0,0.00012,2]
[323441523,1713991845731,-2750.0,0.00012,2]
[323441524,1713991845741,-5000.0,0.00012001,2]
[323441525,1713991845750,-25000.0,0.00012008,2]
[323441526,1713991845759,-2977.96,0.0001201,2]
[323441527,1713991845769,-8000.0,0.0001201,2]
[323441528,1713991845778,-200.01599054,0.00012012,2]
[323441529,1713991845787,-4678.9,0.00012013,2]
[323441530,1713991845797,-5000.0,0.00012013,2]
[323441531,1713991845807,-286.15498362,0.00012015,2]
[323441532,1713991845818,-8000.0,0.0001202,2]
[323441533,1713991845828,-5000.0,0.00012024,2]
[323441534,1713991845838,-5000.0,0.00012025,2]
[323441535,1713991845847,-8000.0,0.0001203,2]
[323441536,1713991845857,-208.61,0.00012033,2]
[323441537,1713991845868,-5000.0,0.00012038,2]
[323441538,1713991845878,-25000.0,0.00012038,2]
[323441539,1713991845888,-8000.0,0.0001204,2]
[323441540,1713991845898,-5000.0,0.0001205,2]
[323441541,1713991845908,-6442.12,0.0001205,2]
[323441542,1713991845917,-5000.0,0.0001205,2]
[323441543,1713991845927,-1081.54694968,0.00012053,3]
[323441544,1713991845936,-1035.0,0.00012054,2]
[323441545,1713991845945,-500.0,0.00012054,2]
[323441546,1713991845955,-500.0,0.00012054,2]
[323441547,1713991845966,-500.0,0.00012054,2]
[323441548,1713991845977,-647.06,0.00012054,2]
[323441549,1713991845987,-500.0,0.00012054,2]
[323441550,1713991845996,-500.0,0.00012054,2]
[323441552,1713991846005,-840.66,0.00012054,2]
[323441553,1713991846014,-218.86,0.00012054,2]
[323441554,1713991846024,-629.23208861,0.00012054,2]
[323441555,1713991846033,-805.34,0.00012054,2]
[323441556,1713991846043,-856.22,0.00012054,2]
[323441557,1713991846052,-500.0,0.00012054,2]
[323441558,1713991846061,-500.0,0.00012054,2]
[323441560,1713991846072,-500.0,0.00012054,2]
[323441561,1713991846084,-500.0,0.00012054,2]
[323441562,1713991846093,-500.0,0.00012054,2]
[323441563,1713991846103,-615.27,0.00012054,2]
[323441564,1713991846114,-574.89,0.00012054,2]
[323441565,1713991846124,-383.31,0.00012054,2]
[323441566,1713991846134,-591.14,0.00012054,2]
[323441567,1713991846145,-296.08,0.00012054,2]
[323441568,1713991846155,-500.0,0.00012054,2]
[323441569,1713991846164,-150.0,0.00012054,2]
[323441570,1713991846174,-859.61,0.00012054,2]
[323441571,1713991846184,-506.23,0.00012054,2]
[323441572,1713991846193,-500.81,0.00012054,2]
[323441573,1713991846202,-842.34,0.00012054,2]
[323441574,1713991846211,-548.43,0.00012054,2]
[323441575,1713991846220,-500.0,0.00012054,2]
[323441576,1713991846229,-500.0,0.00012054,2]
[323441578,1713991846238,-500.0,0.00012054,2]
[323441579,1713991846247,-500.0,0.00012054,2]
[323441580,1713991846256,-350.00129861,0.00012054,2]
[323441581,1713991846265,-665.53,0.00012054,2]
[323441582,1713991846275,-500.0,0.00012054,2]
[323441583,1713991846284,-500.0,0.00012054,2]
[323441584,1713991846296,-605.69,0.00012054,2]
[323441585,1713991846305,-500.0,0.00012054,2]
[323441586,1713991846314,-736.69,0.00012054,2]
[323441587,1713991846323,-826.15,0.00012054,2]
[323441588,1713991846390,-500.0,0.00012054,2]
[323441589,1713991846400,-500.0,0.00012054,2]
[323441590,1713991846409,-500.0,0.00012054,2]
[323441591,1713991846419,-807.78,0.00012054,2]
[323441592,1713991846428,-2038.9,0.00012054,2]
[323441593,1713991846439,-705.7,0.00012054,2]
[323441594,1713991846449,-1307.93,0.00012054,2]
[323441595,1713991846459,-546.95,0.00012054,2]
[323441596,1713991846469,-1642.17,0.00012054,2]
[323441597,1713991846478,-3738.06,0.00012054,2]
[323441598,1713991846488,-805.45,0.00012054,2]
[323441599,1713991846497,-500.0,0.00012054,2]
[323441601,1713991846506,-500.0,0.00012054,2]
[323441603,1713991846515,-500.0,0.00012054,2]
[323441605,1713991846523,-1911.86,0.00012054,2]
[323441607,1713991846532,-500.0,0.00012054,2]
[323441608,1713991846541,-1296.39,0.00012054,2]
[323441609,1713991846550,-690.75,0.00012054,2]
[323441610,1713991846559,-500.0,0.00012054,2]
[323441611,1713991846568,-497.52,0.00012054,2]
[323441612,1713991846578,-857.69,0.00012054,2]
[323441613,1713991846588,-2921.56,0.00012054,2]
[323441614,1713991846597,-1941.91,0.00012054,2]
[323441615,1713991846606,-936.37,0.00012054,2]
[323441616,1713991846615,-500.0,0.00012054,2]
[323441617,1713991846625,-1967.54,0.00012054,2]
[323441618,1713991846633,-500.0,0.00012054,2]
[323441619,1713991846643,-3113.04,0.00012054,2]
[323441620,1713991846652,-621.85,0.00012054,2]
[323441621,1713991846661,-611.57,0.00012054,2]
[323441622,1713991846671,-2015.75,0.00012054,2]
[323441623,1713991846680,-500.0,0.00012054,2]
[323441624,1713991846689,-1275.63,0.00012054,2]
[323441625,1713991846698,-696.19,0.00012054,2]
[323441626,1713991846706,-1820.17,0.00012054,2]
[323441627,1713991846715,-947.66,0.00012054,2]
[323441628,1713991846724,-1464.99,0.00012054,2]
[323441629,1713991846734,-2801.3,0.00012054,2]
[323441630,1713991846742,-41852.14,0.00012054,2]
[323441631,1713991846751,-500.0,0.00012054,2]
[323441632,1713991846760,-500.0,0.00012054,2]
[323441633,1713991846770,-1433.62,0.00012054,2]